[Event "*** SCC Grand Prix: Titled Tuesday Blitz"]
[Site "Chess.com"]
[Date "2020.06.23"]
[Round "10"]
[White "novendrapriasmoro"]
[Black "Moon_stone123"]
[Result "1-0"]
[WhiteElo "2609"]
[BlackElo "2471"]
[TimeControl "180+1"]
[EndTime "11:59:16 PDT"]
[Termination "novendrapriasmoro won by resignation"]

1. e4 {[%clk 0:03:00.9]} 1... c5 {[%clk 0:02:59.7]} 2. Nf3 {[%clk 0:03:00.7]}
2... d6 {[%clk 0:02:59.7]} 3. d4 {[%clk 0:03:01]} 3... Nf6 {[%clk 0:02:59.6]} 4.
Nc3 {[%clk 0:03:00.7]} 4... cxd4 {[%clk 0:02:59.7]} 5. Nxd4 {[%clk 0:03:01.6]}
5... g6 {[%clk 0:03:00.1]} 6. Be3 {[%clk 0:03:01.3]} 6... Bg7 {[%clk 0:03:00.6]}
7. f3 {[%clk 0:03:00.6]} 7... Nc6 {[%clk 0:03:01]} 8. Qd2 {[%clk 0:03:00.6]}
8... O-O {[%clk 0:03:01.2]} 9. Bc4 {[%clk 0:03:01.1]} 9... Bd7 {[%clk
0:02:59.8]} 10. O-O-O {[%clk 0:02:57.8]} 10... Rc8 {[%clk 0:02:59.9]} 11. Bb3
{[%clk 0:02:57]} 11... Ne5 {[%clk 0:03:00.3]} 12. Bh6 {[%clk 0:02:54.2]} 12...
Bxh6 {[%clk 0:02:57.5]} 13. Qxh6 {[%clk 0:02:55.1]} 13... Rxc3 {[%clk
0:02:57.6]} 14. bxc3 {[%clk 0:02:54.9]} 14... Qa5 {[%clk 0:02:57.1]} 15. Qe3
{[%clk 0:02:53.3]} 15... Rc8 {[%clk 0:02:52]} 16. Kb2 {[%clk 0:02:53.2]} 16...
Nc4+ {[%clk 0:02:21]} 17. Bxc4 {[%clk 0:02:52.1]} 17... Rxc4 {[%clk 0:02:21.9]}
18. Nb3 {[%clk 0:02:50.2]} 18... Qc7 {[%clk 0:02:19.9]} 19. Rd4 {[%clk
0:02:46.9]} 19... Be6 {[%clk 0:02:15.6]} 20. Rxc4 {[%clk 0:02:45.6]} 20... Bxc4
{[%clk 0:02:16.5]} 21. Qxa7 {[%clk 0:02:39.3]} 21... Nd7 {[%clk 0:02:15.4]} 22.
Rd1 {[%clk 0:02:33.3]} 22... Be6 {[%clk 0:02:06.4]} 23. Rd4 {[%clk 0:02:23.8]}
23... Ne5 {[%clk 0:01:52]} 24. Nd2 {[%clk 0:02:22.3]} 24... Kg7 {[%clk
0:01:37.4]} 25. Rb4 {[%clk 0:02:13.3]} 25... Bc8 {[%clk 0:01:23.1]} 26. Qb6
{[%clk 0:02:02.2]} 26... Qd7 {[%clk 0:01:19.3]} 27. f4 {[%clk 0:01:57.1]} 27...
Nc6 {[%clk 0:01:18.8]} 28. Ra4 {[%clk 0:01:52.7]} 28... Qg4 {[%clk 0:01:11.3]}
29. Ra8 {[%clk 0:01:48.5]} 29... Qxf4 {[%clk 0:01:08.8]} 30. Nb3 {[%clk
0:01:38.5]} 30... Be6 {[%clk 0:00:59.6]} 31. Nd4 {[%clk 0:01:25]} 31... Ne5
{[%clk 0:00:58.6]} 32. Nxe6+ {[%clk 0:01:24.4]} 32... fxe6 {[%clk 0:00:59.5]}
33. Qd4 {[%clk 0:01:22.5]} 33... b5 {[%clk 0:00:52.4]} 34. Rb8 {[%clk
0:01:11.7]} 34... Qf1 {[%clk 0:00:51.7]} 35. Rc8 {[%clk 0:00:56]} 35... Kf7
{[%clk 0:00:47.4]} 36. a4 {[%clk 0:00:50]} 36... bxa4 {[%clk 0:00:25.2]} 37.
Qxa4 {[%clk 0:00:49.1]} 37... Qe2 {[%clk 0:00:24.5]} 38. Qe8+ {[%clk 0:00:47.3]}
38... Kf6 {[%clk 0:00:23.1]} 39. Qf8+ {[%clk 0:00:47.2]} 39... Nf7 {[%clk
0:00:22.3]} 40. c4 {[%clk 0:00:23.9]} 40... Qxe4 {[%clk 0:00:20]} 41. Rc7 {[%clk
0:00:23.5]} 41... Qd4+ {[%clk 0:00:17.3]} 42. Ka2 {[%clk 0:00:23.6]} 42... Qc3
{[%clk 0:00:07.5]} 43. Qxe7+ {[%clk 0:00:19.7]} 43... Ke5 {[%clk 0:00:07.9]} 44.
Qxf7 {[%clk 0:00:13.7]} 44... Qa5+ {[%clk 0:00:07.8]} 45. Kb3 {[%clk 0:00:13.5]}
45... Qb6+ {[%clk 0:00:05.9]} 46. Kc3 {[%clk 0:00:12.6]} 46... Qe3+ {[%clk
0:00:06.1]} 47. Kb2 {[%clk 0:00:11.6]} 47... Qb6+ {[%clk 0:00:07]} 48. Kc1
{[%clk 0:00:11.6]} 48... Qg1+ {[%clk 0:00:07.1]} 49. Kd2 {[%clk 0:00:12]} 49...
Qd4+ {[%clk 0:00:07.2]} 50. Ke2 {[%clk 0:00:12.4]} 50... Qe4+ {[%clk 0:00:07.5]}
51. Kf2 {[%clk 0:00:12.6]} 51... Qxc2+ {[%clk 0:00:07]} 52. Kg3 {[%clk
0:00:12.9]} 52... Qc3+ {[%clk 0:00:02.1]} 53. Qf3 {[%clk 0:00:13.1]} 53... Qe1+
{[%clk 0:00:02.2]} 54. Qf2 {[%clk 0:00:13.4]} 54... Qe4 {[%clk 0:00:01.7]} 55.
Qb2+ {[%clk 0:00:11.5]} 55... Kf5 {[%clk 0:00:01.7]} 56. Rf7+ {[%clk 0:00:11]}
56... Kg5 {[%clk 0:00:02.2]} 57. Qd2+ {[%clk 0:00:10.9]} 57... Kh5 {[%clk
0:00:02.3]} 58. Qd1+ {[%clk 0:00:11.2]} 58... Kh6 {[%clk 0:00:02.4]} 59. Qd2+
{[%clk 0:00:11.1]} 59... g5 {[%clk 0:00:02.9]} 60. Rf6+ {[%clk 0:00:10.6]} 60...
Kh5 {[%clk 0:00:03.4]} 61. Qd1+ {[%clk 0:00:09.3]} 61... g4 {[%clk 0:00:02.9]}
62. Kf2 {[%clk 0:00:05.5]} 62... Qe5 {[%clk 0:00:02]} 63. Rf8 {[%clk 0:00:04.5]}
63... Qc5+ {[%clk 0:00:02.5]} 64. Kf1 {[%clk 0:00:03.1]} 64... d5 {[%clk
0:00:03.1]} 65. Rf2 {[%clk 0:00:02.4]} 65... Qxc4+ {[%clk 0:00:03.4]} 66. Kg1
{[%clk 0:00:02.7]} 66... Qe4 {[%clk 0:00:04.3]} 67. h3 {[%clk 0:00:02.9]} 67...
Qg6 {[%clk 0:00:04.6]} 68. Qxg4+ {[%clk 0:00:03.1]} 68... Qxg4 {[%clk
0:00:05.5]} 69. hxg4+ {[%clk 0:00:04]} 69... Kxg4 {[%clk 0:00:06.4]} 70. Rf7
{[%clk 0:00:02.3]} 70... e5 {[%clk 0:00:06.4]} 71. Kf2 {[%clk 0:00:02.7]} 71...
d4 {[%clk 0:00:06.5]} 72. Rxh7 {[%clk 0:00:02.9]} 72... e4 {[%clk 0:00:06.2]}
73. Rf7 {[%clk 0:00:03.8]} 73... d3 {[%clk 0:00:05.9]} 74. Ke3 {[%clk 0:00:04]}
74... Kg3 {[%clk 0:00:06.3]} 75. Kxe4 {[%clk 0:00:04.2]} 75... d2 {[%clk
0:00:06.8]} 76. Rd7 {[%clk 0:00:04.6]} 76... Kxg2 {[%clk 0:00:07.3]} 77. Rxd2+
{[%clk 0:00:04.9]} 77... Kg3 {[%clk 0:00:08.2]} 78. Rd3+ {[%clk 0:00:05.3]}
78... Kg4 {[%clk 0:00:09.1]} 79. Rf3 {[%clk 0:00:06]} 79... Kg5 {[%clk
0:00:09.8]} 80. Rg3+ {[%clk 0:00:06.2]} 80... Kf6 {[%clk 0:00:10.1]} 81. Rg4
{[%clk 0:00:06.5]} 81... Ke6 {[%clk 0:00:10.3]} 82. Rg6+ {[%clk 0:00:06.6]}
82... Kd7 {[%clk 0:00:10.7]} 83. Kd5 {[%clk 0:00:06.6]} 83... Ke7 {[%clk
0:00:11.3]} 84. Ra6 {[%clk 0:00:06.7]} 84... Kf7 {[%clk 0:00:12.2]} 85. Ke5
{[%clk 0:00:06.9]} 85... Ke7 {[%clk 0:00:13.1]} 86. Ra7+ {[%clk 0:00:06.2]} 1-0

[Event "*** SCC Grand Prix: Titled Tuesday Blitz"]
[Site "Chess.com"]
[Date "2020.06.23"]
[Round "10"]
[White "GigaQuparadze"]
[Black "Guenplen"]
[Result "0-1"]
[WhiteElo "2826"]
[BlackElo "2930"]
[TimeControl "180+1"]
[EndTime "11:59:21 PDT"]
[Termination "Guenplen won by resignation"]

1. e4 {[%clk 0:03:00.9]} 1... c5 {[%clk 0:03:00]} 2. Nc3 {[%clk 0:03:00]} 2...
Nc6 {[%clk 0:02:56.8]} 3. Bb5 {[%clk 0:02:59.1]} 3... Nd4 {[%clk 0:02:56.8]} 4.
Nf3 {[%clk 0:02:59]} 4... e6 {[%clk 0:02:57]} 5. Nxd4 {[%clk 0:02:58.2]} 5...
cxd4 {[%clk 0:02:57.1]} 6. Ne2 {[%clk 0:02:58.8]} 6... Qg5 {[%clk 0:02:57.4]} 7.
Bd3 {[%clk 0:02:53.3]} 7... Qxg2 {[%clk 0:02:55.9]} 8. Rg1 {[%clk 0:02:53.5]}
8... Qxh2 {[%clk 0:02:55.1]} 9. c3 {[%clk 0:02:53.1]} 9... dxc3 {[%clk
0:02:47.4]} 10. dxc3 {[%clk 0:02:54]} 10... Bc5 {[%clk 0:02:45.5]} 11. Rxg7
{[%clk 0:02:38.5]} 11... Bxf2+ {[%clk 0:02:21.2]} 12. Kf1 {[%clk 0:02:38]} 12...
Bb6 {[%clk 0:02:13.4]} 13. Nd4 {[%clk 0:02:30.1]} 13... Qh1+ {[%clk 0:01:58.8]}
14. Ke2 {[%clk 0:02:11.4]} 14... Qh5+ {[%clk 0:01:56]} 15. Nf3 {[%clk
0:02:03.5]} 15... Ne7 {[%clk 0:01:45.3]} 16. Rg5 {[%clk 0:01:46]} 16... Qh3
{[%clk 0:01:41.1]} 17. Bf4 {[%clk 0:01:44.4]} 17... Ng6 {[%clk 0:01:37.3]} 18.
Bd6 {[%clk 0:01:38.6]} 18... f6 {[%clk 0:01:17.8]} 19. Rg3 {[%clk 0:01:33.3]}
19... Qh6 {[%clk 0:01:17.9]} 20. Qc1 {[%clk 0:01:22.1]} 20... Qxc1 {[%clk
0:01:10.2]} 21. Rxc1 {[%clk 0:01:23]} 21... Bd8 {[%clk 0:01:10.9]} 22. Rh1
{[%clk 0:01:21.7]} 22... Be7 {[%clk 0:01:04.9]} 23. Bc7 {[%clk 0:01:17.6]} 23...
Kf7 {[%clk 0:00:58.3]} 24. e5 {[%clk 0:00:56.5]} 24... Nf4+ {[%clk 0:00:51.7]}
25. Kd2 {[%clk 0:00:56.5]} 25... Nxd3 {[%clk 0:00:50.5]} 26. Kxd3 {[%clk
0:00:57.4]} 26... b6 {[%clk 0:00:50.6]} 27. exf6 {[%clk 0:00:48.1]} 27... Ba6+
{[%clk 0:00:50.6]} 28. Ke3 {[%clk 0:00:42.8]} 28... Bxf6 {[%clk 0:00:51.5]} 29.
Ng5+ {[%clk 0:00:30.8]} 29... Bxg5+ {[%clk 0:00:39.8]} 30. Rxg5 {[%clk
0:00:31.7]} 30... h6 {[%clk 0:00:40.2]} 31. Rgh5 {[%clk 0:00:27]} 31... Bb7
{[%clk 0:00:32.1]} 32. R1h2 {[%clk 0:00:20.2]} 32... Rag8 {[%clk 0:00:27.6]} 33.
Be5 {[%clk 0:00:18]} 33... Rh7 {[%clk 0:00:24.7]} 34. Rxh6 {[%clk 0:00:18.4]}
34... Rxh6 {[%clk 0:00:25.6]} 35. Rxh6 {[%clk 0:00:18.9]} 35... Bc6 {[%clk
0:00:25.2]} 36. Rh7+ {[%clk 0:00:18.7]} 36... Kg6 {[%clk 0:00:24.8]} 37. Rh3
{[%clk 0:00:18.3]} 37... Kf5 {[%clk 0:00:24]} 38. Rh5+ {[%clk 0:00:18.2]} 38...
Kg4 {[%clk 0:00:18.5]} 39. Rh7 {[%clk 0:00:18.2]} 39... Rf8 {[%clk 0:00:13.9]}
40. Rg7+ {[%clk 0:00:18.3]} 40... Kf5 {[%clk 0:00:14.3]} 41. Bd6 {[%clk
0:00:18.5]} 41... Rh8 {[%clk 0:00:13.4]} 42. Rf7+ {[%clk 0:00:18.5]} 42... Kg6
{[%clk 0:00:13.9]} 43. Rf1 {[%clk 0:00:18.3]} 43... Rh3+ {[%clk 0:00:13.8]} 44.
Kd4 {[%clk 0:00:18.4]} 44... Rh5 {[%clk 0:00:14.7]} 45. c4 {[%clk 0:00:17.6]}
45... Rh4+ {[%clk 0:00:13.9]} 46. Rf4 {[%clk 0:00:17.6]} 46... Rh3 {[%clk
0:00:10.6]} 47. Rg4+ {[%clk 0:00:16.9]} 47... Kf5 {[%clk 0:00:10.6]} 48. Rg3
{[%clk 0:00:16.9]} 48... Rh4+ {[%clk 0:00:10.4]} 49. Kc3 {[%clk 0:00:16.8]}
49... a6 {[%clk 0:00:10.7]} 50. Re3 {[%clk 0:00:16.6]} 50... b5 {[%clk
0:00:10.6]} 51. cxb5 {[%clk 0:00:16.5]} 51... axb5 {[%clk 0:00:11.5]} 52. b3
{[%clk 0:00:16.6]} 52... Kg6 {[%clk 0:00:11.5]} 53. a3 {[%clk 0:00:15.7]} 53...
Kf5 {[%clk 0:00:10.2]} 54. Re5+ {[%clk 0:00:15.5]} 54... Kg6 {[%clk 0:00:09.4]}
55. Re3 {[%clk 0:00:16.4]} 55... Rh1 {[%clk 0:00:09.5]} 56. Rg3+ {[%clk
0:00:16.2]} 56... Kf5 {[%clk 0:00:09.9]} 57. Re3 {[%clk 0:00:15.9]} 57... Rd1
{[%clk 0:00:09.8]} 58. Bg3 {[%clk 0:00:15.1]} 58... Rc1+ {[%clk 0:00:09.5]} 59.
Kd2 {[%clk 0:00:14.7]} 59... Rf1 {[%clk 0:00:10.4]} 60. Bd6 {[%clk 0:00:14.5]}
60... Rb1 {[%clk 0:00:10]} 61. Re5+ {[%clk 0:00:14]} 61... Kg6 {[%clk 0:00:10]}
62. Re3 {[%clk 0:00:13.9]} 62... Rb2+ {[%clk 0:00:10.3]} 63. Kc3 {[%clk
0:00:13.8]} 63... Rf2 {[%clk 0:00:10.4]} 64. Rd3 {[%clk 0:00:13.7]} 64... Kf5
{[%clk 0:00:09.7]} 65. Re3 {[%clk 0:00:14.1]} 65... Rf1 {[%clk 0:00:10]} 66.
Re5+ {[%clk 0:00:14]} 66... Kf6 {[%clk 0:00:09.6]} 67. Re2 {[%clk 0:00:14]}
67... Bd5 {[%clk 0:00:09.8]} 68. Re3 {[%clk 0:00:13.9]} 68... Rb1 {[%clk
0:00:09.2]} 69. Kb4 {[%clk 0:00:14.2]} 69... Bc6 {[%clk 0:00:08.5]} 70. Kc3
{[%clk 0:00:12.7]} 70... Rd1 {[%clk 0:00:07.9]} 71. Be5+ {[%clk 0:00:12.1]}
71... Kf5 {[%clk 0:00:08]} 72. Bg3 {[%clk 0:00:12]} 72... Rf1 {[%clk 0:00:07.7]}
73. Bd6 {[%clk 0:00:11.2]} 73... Be4 {[%clk 0:00:07.7]} 74. Kd4 {[%clk 0:00:11]}
74... Rd1+ {[%clk 0:00:07.6]} 75. Kc5 {[%clk 0:00:11.3]} 75... Rd5+ {[%clk
0:00:07.8]} 76. Kb4 {[%clk 0:00:11.6]} 76... Rxd6 {[%clk 0:00:08]} 77. Kxb5
{[%clk 0:00:12.2]} 77... Rd3 {[%clk 0:00:08.6]} 78. Rxd3 {[%clk 0:00:11.9]}
78... Bxd3+ {[%clk 0:00:09.5]} 79. Kc5 {[%clk 0:00:12.7]} 79... e5 {[%clk
0:00:09.8]} 80. a4 {[%clk 0:00:12.4]} 80... e4 {[%clk 0:00:10.3]} 81. Kd4 {[%clk
0:00:12.3]} 81... Kf4 {[%clk 0:00:10.7]} 82. b4 {[%clk 0:00:12.8]} 82... Ba6
{[%clk 0:00:09.8]} 83. b5 {[%clk 0:00:13.2]} 83... Bc8 {[%clk 0:00:09.6]} 84. a5
{[%clk 0:00:13.3]} 84... e3 {[%clk 0:00:10.1]} 85. a6 {[%clk 0:00:13.1]} 85...
e2 {[%clk 0:00:10.3]} 86. Kc5 {[%clk 0:00:13]} 86... e1=Q {[%clk 0:00:10.4]} 87.
Kb6 {[%clk 0:00:13.9]} 87... Qe3+ {[%clk 0:00:10.1]} 88. Kc7 {[%clk 0:00:13.9]}
88... Qc5+ {[%clk 0:00:10.3]} 0-1

[Event "*** SCC Grand Prix: Titled Tuesday Blitz"]
[Site "Chess.com"]
[Date "2020.06.23"]
[Round "10"]
[White "124chess"]
[Black "nikitakhoroshev"]
[Result "1/2-1/2"]
[WhiteElo "2702"]
[BlackElo "2492"]
[TimeControl "180+1"]
[EndTime "11:59:29 PDT"]
[Termination "Game drawn by stalemate"]

1. b3 {[%clk 0:03:00.9]} 1... a5 {[%clk 0:02:59.3]} 2. Bb2 {[%clk 0:03:01.8]}
2... a4 {[%clk 0:02:58.6]} 3. g3 {[%clk 0:03:02.2]} 3... e6 {[%clk 0:02:56.8]}
4. Bg2 {[%clk 0:03:02.2]} 4... a3 {[%clk 0:02:56.9]} 5. Bc3 {[%clk 0:02:59.2]}
5... c5 {[%clk 0:02:56]} 6. Nf3 {[%clk 0:02:58.8]} 6... Nc6 {[%clk 0:02:55.1]}
7. O-O {[%clk 0:02:58.1]} 7... d5 {[%clk 0:02:53]} 8. d4 {[%clk 0:02:58.2]} 8...
Nf6 {[%clk 0:02:52.5]} 9. Ne5 {[%clk 0:02:52.7]} 9... Qb6 {[%clk 0:02:36]} 10.
Nxc6 {[%clk 0:02:52.3]} 10... bxc6 {[%clk 0:02:36.9]} 11. e3 {[%clk 0:02:50.8]}
11... Be7 {[%clk 0:02:33.2]} 12. Nd2 {[%clk 0:02:50.6]} 12... O-O {[%clk
0:02:32.3]} 13. dxc5 {[%clk 0:02:48.6]} 13... Qxc5 {[%clk 0:02:30.8]} 14. Bd4
{[%clk 0:02:48.9]} 14... Qa5 {[%clk 0:02:30.7]} 15. c4 {[%clk 0:02:49.3]} 15...
Bb7 {[%clk 0:02:23.4]} 16. Rc1 {[%clk 0:02:48]} 16... c5 {[%clk 0:02:22.5]} 17.
Bc3 {[%clk 0:02:46]} 17... Qb6 {[%clk 0:02:20.5]} 18. Qc2 {[%clk 0:02:44.6]}
18... Rac8 {[%clk 0:02:17.1]} 19. Rfd1 {[%clk 0:02:38.8]} 19... Rfd8 {[%clk
0:02:16.7]} 20. Be5 {[%clk 0:02:35.4]} 20... Nd7 {[%clk 0:02:12.7]} 21. Ba1
{[%clk 0:02:34.7]} 21... Bf8 {[%clk 0:02:11.9]} 22. cxd5 {[%clk 0:02:32.9]}
22... exd5 {[%clk 0:02:11.3]} 23. Nf3 {[%clk 0:02:32.8]} 23... Nf6 {[%clk
0:02:07.8]} 24. Ne1 {[%clk 0:02:24.4]} 24... Qe6 {[%clk 0:02:04.7]} 25. Nd3
{[%clk 0:02:24.1]} 25... Ne4 {[%clk 0:02:03.2]} 26. Nf4 {[%clk 0:02:24]} 26...
Qh6 {[%clk 0:01:48.9]} 27. Nxd5 {[%clk 0:02:18.3]} 27... Ng5 {[%clk 0:01:37.4]}
28. h4 {[%clk 0:02:15.7]} 28... Ne6 {[%clk 0:01:35.9]} 29. Qc3 {[%clk
0:02:06.4]} 29... Bc6 {[%clk 0:01:32.1]} 30. Qa5 {[%clk 0:01:37.2]} 30... Nd4
{[%clk 0:01:28.5]} 31. Bxd4 {[%clk 0:01:12.5]} 31... Bxd5 {[%clk 0:01:21.8]} 32.
Bxg7 {[%clk 0:00:42.2]} 32... Qxg7 {[%clk 0:01:13]} 33. Bxd5 {[%clk 0:00:41.5]}
33... Qb2 {[%clk 0:01:00.9]} 34. Bc4 {[%clk 0:00:33.4]} 34... Re8 {[%clk
0:00:46.9]} 35. Qd2 {[%clk 0:00:25.1]} 35... Rcd8 {[%clk 0:00:43.7]} 36. Qe2
{[%clk 0:00:22.9]} 36... Bg7 {[%clk 0:00:41.7]} 37. Rb1 {[%clk 0:00:15.6]} 37...
Qc3 {[%clk 0:00:33.9]} 38. Qf3 {[%clk 0:00:13.9]} 38... Qf6 {[%clk 0:00:31.7]}
39. Qxf6 {[%clk 0:00:13.9]} 39... Bxf6 {[%clk 0:00:32.6]} 40. Kf1 {[%clk
0:00:11]} 40... Bc3 {[%clk 0:00:31.5]} 41. Ke2 {[%clk 0:00:10.9]} 41... Kf8
{[%clk 0:00:31.2]} 42. Rxd8 {[%clk 0:00:10.9]} 42... Rxd8 {[%clk 0:00:32.1]} 43.
Rd1 {[%clk 0:00:11.5]} 43... Rxd1 {[%clk 0:00:31.7]} 44. Kxd1 {[%clk 0:00:12.4]}
44... Ke7 {[%clk 0:00:32.2]} 45. Ke2 {[%clk 0:00:13.1]} 45... h6 {[%clk
0:00:32.1]} 46. f4 {[%clk 0:00:13.6]} 46... f6 {[%clk 0:00:30.2]} 47. e4 {[%clk
0:00:13.9]} 47... Bd4 {[%clk 0:00:28.6]} 48. Kf3 {[%clk 0:00:14.3]} 48... Bc3
{[%clk 0:00:26.1]} 49. Kg4 {[%clk 0:00:09]} 49... Be1 {[%clk 0:00:26]} 50. Kf3
{[%clk 0:00:08.8]} 50... Kd6 {[%clk 0:00:24.5]} 51. h5 {[%clk 0:00:04.1]} 51...
Bc3 {[%clk 0:00:20.3]} 52. g4 {[%clk 0:00:04.5]} 52... Bd2 {[%clk 0:00:19.7]}
53. Bd5 {[%clk 0:00:03.9]} 53... Bc1 {[%clk 0:00:19.1]} 54. Bc4 {[%clk
0:00:03.4]} 54... Bd2 {[%clk 0:00:19.2]} 55. e5+ {[%clk 0:00:03.6]} 55... fxe5
{[%clk 0:00:19]} 56. g5 {[%clk 0:00:04.5]} 56... exf4 {[%clk 0:00:16.6]} 57. g6
{[%clk 0:00:04.4]} 57... Bc3 {[%clk 0:00:16.3]} 58. Kxf4 {[%clk 0:00:05.3]}
58... Bg7 {[%clk 0:00:16.3]} 59. Kf5 {[%clk 0:00:05.7]} 59... Bh8 {[%clk
0:00:16.3]} 60. Ke4 {[%clk 0:00:05.9]} 60... Bg7 {[%clk 0:00:16.3]} 61. Kd3
{[%clk 0:00:06.3]} 61... Bf6 {[%clk 0:00:16.1]} 62. Bf7 {[%clk 0:00:06.1]} 62...
Kc6 {[%clk 0:00:13.1]} 63. Kc4 {[%clk 0:00:07]} 63... Bg7 {[%clk 0:00:13.1]} 64.
Bd5+ {[%clk 0:00:06.7]} 64... Kd6 {[%clk 0:00:12.6]} 65. Bf3 {[%clk 0:00:07.3]}
65... Bb2 {[%clk 0:00:11.9]} 66. Kb5 {[%clk 0:00:06.9]} 66... Bd4 {[%clk
0:00:12]} 67. Ka4 {[%clk 0:00:07.3]} 67... Bb2 {[%clk 0:00:12.3]} 68. g7 {[%clk
0:00:04.6]} 68... Bxg7 {[%clk 0:00:11.4]} 69. Kxa3 {[%clk 0:00:05.5]} 69... Kc7
{[%clk 0:00:10.9]} 70. Ka4 {[%clk 0:00:05.7]} 70... Kb6 {[%clk 0:00:11]} 71. Be2
{[%clk 0:00:04.3]} 71... Bc3 {[%clk 0:00:10.8]} 72. a3 {[%clk 0:00:04.2]} 72...
Bd2 {[%clk 0:00:10.4]} 73. b4 {[%clk 0:00:04.5]} 73... cxb4 {[%clk 0:00:10.2]}
74. axb4 {[%clk 0:00:05.4]} 74... Bxb4 {[%clk 0:00:08.4]} 75. Kxb4 {[%clk
0:00:05.2]} 75... Kc6 {[%clk 0:00:09.3]} 76. Kc4 {[%clk 0:00:05.9]} 76... Kd6
{[%clk 0:00:09.8]} 77. Kd4 {[%clk 0:00:06.8]} 77... Ke7 {[%clk 0:00:10.4]} 78.
Bd3 {[%clk 0:00:07.4]} 78... Kf7 {[%clk 0:00:11]} 79. Ke5 {[%clk 0:00:08.3]}
79... Kg7 {[%clk 0:00:11.9]} 80. Kf5 {[%clk 0:00:08.4]} 80... Kh8 {[%clk
0:00:12.8]} 81. Kg6 {[%clk 0:00:08.3]} 81... Kg8 {[%clk 0:00:13.1]} 82. Kf6
{[%clk 0:00:08.2]} 82... Kh8 {[%clk 0:00:14]} 83. Bg6 {[%clk 0:00:08.7]} 83...
Kg8 {[%clk 0:00:14.9]} 84. Bf7+ {[%clk 0:00:09]} 84... Kh8 {[%clk 0:00:15.8]}
85. Be8 {[%clk 0:00:09.2]} 85... Kh7 {[%clk 0:00:16.7]} 86. Kf7 {[%clk
0:00:09.1]} 86... Kh8 {[%clk 0:00:16.7]} 87. Kf8 {[%clk 0:00:10]} 87... Kh7
{[%clk 0:00:16.9]} 88. Bg6+ {[%clk 0:00:10.2]} 88... Kh8 {[%clk 0:00:17.8]} 89.
Bf7 {[%clk 0:00:10.7]} 89... Kh7 {[%clk 0:00:18]} 90. Bg8+ {[%clk 0:00:11.6]}
90... Kh8 {[%clk 0:00:18.9]} 91. Bb3 {[%clk 0:00:12.3]} 91... Kh7 {[%clk
0:00:19.3]} 92. Kf7 {[%clk 0:00:13.2]} 92... Kh8 {[%clk 0:00:20.2]} 93. Kf6
{[%clk 0:00:14.1]} 93... Kh7 {[%clk 0:00:20.3]} 94. Kf5 {[%clk 0:00:14.1]} 94...
Kh8 {[%clk 0:00:21.2]} 95. Kg6 {[%clk 0:00:15]} 1/2-1/2